[Event "Titled Tuesday Blitz November 07 Early 2023"]
[White "Darini, Pouria"]
[Black "Boros, Denes"]
[WhiteFideId "12502200"]
[BlackFideId "722340"]
[WhiteElo "2729"]
[BlackElo "2936"]
[Result "1/2-1/2"]
[Round "6"]
[TimeControl "180+1"]
[Date "2023.11.07"]
[WhiteClock "0:00:04"]
[BlackClock "0:01:36"]
[Board "39"]

1. e4 {[%clk 0:03:00]}  g6 {[%clk 0:03:00]} 2. d4 {[%clk 0:02:55]}  d5 {[%clk 0:03:00]} 3. exd5 {[%clk 0:02:54]}  Qxd5 {[%clk 0:03:01]} 4. c4 {[%clk 0:02:54]}  Qd8 {[%clk 0:03:01]} 5. Nc3 {[%clk 0:02:55]}  Bg7 {[%clk 0:03:02]} 6. h3 {[%clk 0:02:55]}  Nh6 {[%clk 0:03:02]} 7. Nf3 {[%clk 0:02:53]}  Nf5 {[%clk 0:03:02]} 8. d5 {[%clk 0:02:51]}  c6 {[%clk 0:03:03]} 9. g4 {[%clk 0:02:37]}  Nd6 {[%clk 0:03:03]} 10. c5 {[%clk 0:02:36]}  Nb5 {[%clk 0:03:03]} 11. Nxb5 {[%clk 0:02:36]}  cxb5 {[%clk 0:03:04]} 12. Bxb5+ {[%clk 0:02:36]}  Bd7 {[%clk 0:03:04]} 13. Bxd7+ {[%clk 0:02:22]}  Nxd7 {[%clk 0:03:05]} 14. Be3 {[%clk 0:02:20]}  Qa5+ {[%clk 0:03:05]} 15. Qd2 {[%clk 0:02:19]}  Qxd2+ {[%clk 0:03:02]} 16. Nxd2 {[%clk 0:02:05]}  Nf6 {[%clk 0:03:02]} 17. Bd4 {[%clk 0:01:56]}  Rd8 {[%clk 0:02:52]} 18. Bxf6 {[%clk 0:01:00]}  Bxf6 {[%clk 0:02:52]} 19. Ne4 {[%clk 0:01:00]}  Rxd5 {[%clk 0:02:49]} 20. Nxf6+ {[%clk 0:00:59]}  exf6 {[%clk 0:02:49]} 21. Rc1 {[%clk 0:00:56]}  Kd7 {[%clk 0:02:34]} 22. O-O {[%clk 0:00:52]}  Re8 {[%clk 0:02:30]} 23. Rfd1 {[%clk 0:00:49]}  Kc6 {[%clk 0:02:25]} 24. Rxd5 {[%clk 0:00:49]}  Kxd5 {[%clk 0:02:25]} 25. Kf1 {[%clk 0:00:40]}  a5 {[%clk 0:02:22]} 26. Rd1+ {[%clk 0:00:35]}  Kc6 {[%clk 0:02:21]} 27. Rd6+ {[%clk 0:00:35]}  Kxc5 {[%clk 0:02:21]} 28. Rxf6 {[%clk 0:00:27]}  Re7 {[%clk 0:02:20]} 29. Rf4 {[%clk 0:00:16]}  b5 {[%clk 0:02:16]} 30. a3 {[%clk 0:00:15]}  b4 {[%clk 0:02:12]} 31. axb4+ {[%clk 0:00:14]}  axb4 {[%clk 0:02:13]} 32. b3 {[%clk 0:00:14]}  g5 {[%clk 0:02:04]} 33. Rc4+ {[%clk 0:00:14]}  Kb5 {[%clk 0:02:03]} 34. Rd4 {[%clk 0:00:14]}  h6 {[%clk 0:02:01]} 35. Rd5+ {[%clk 0:00:12]}  Kc6 {[%clk 0:02:01]} 36. Rd4 {[%clk 0:00:13]}  Kc5 {[%clk 0:01:59]} 37. Rc4+ {[%clk 0:00:13]}  Kb5 {[%clk 0:02:00]} 38. Rd4 {[%clk 0:00:14]}  Re5 {[%clk 0:01:57]} 39. Kg2 {[%clk 0:00:12]}  f5 {[%clk 0:01:57]} 40. gxf5 {[%clk 0:00:11]}  Rxf5 {[%clk 0:01:57]} 41. Kg3 {[%clk 0:00:12]}  Rc5 {[%clk 0:01:57]} 42. Rd3 {[%clk 0:00:09]}  Rc3 {[%clk 0:01:57]} 43. Re3 {[%clk 0:00:08]}  Kc5 {[%clk 0:01:56]} 44. Kg4 {[%clk 0:00:05]}  Kd4 {[%clk 0:01:56]} 45. Re6 {[%clk 0:00:06]}  Rxb3 {[%clk 0:01:54]} 46. Rxh6 {[%clk 0:00:06]}  Rb1 {[%clk 0:01:53]} 47. Kxg5 {[%clk 0:00:07]}  b3 {[%clk 0:01:53]} 48. Rb6 {[%clk 0:00:06]}  b2 {[%clk 0:01:47]} 49. Kf5 {[%clk 0:00:05]}  Kc3 {[%clk 0:01:46]} 50. h4 {[%clk 0:00:06]}  Rf1 {[%clk 0:01:42]} 51. h5 {[%clk 0:00:04]}  Rxf2+ {[%clk 0:01:42]} 52. Kg6 {[%clk 0:00:05]}  Rf4 {[%clk 0:01:35]} 53. Rxb2 {[%clk 0:00:03]}  Kxb2 {[%clk 0:01:36]} 54. h6 {[%clk 0:00:04]}  Rh4 {[%clk 0:01:36]} 55. h7 {[%clk 0:00:04]}  Rxh7 {[%clk 0:01:36]} 56. Kxh7 {[%clk 0:00:04]} 1/2-1/2


[Site "https://www.chess.com"]

[Event "Titled Tuesday Blitz November 07 Early 2023"]
[White "Aradhya, Garg"]
[Black "Baskakov, Egor"]
[WhiteFideId "25006746"]
[BlackFideId "24197866"]
[WhiteElo "2700"]
[BlackElo "2916"]
[Result "1-0"]
[Round "6"]
[TimeControl "180+1"]
[Date "2023.11.07"]
[WhiteClock "0:02:14"]
[BlackClock "0:00:45"]
[Board "43"]

1. d4 {[%clk 0:03:00]}  Nf6 {[%clk 0:02:59]} 2. c4 {[%clk 0:03:01]}  e6 {[%clk 0:03:00]} 3. Nf3 {[%clk 0:03:01]}  d5 {[%clk 0:03:01]} 4. Nc3 {[%clk 0:03:01]}  Ne4 {[%clk 0:03:02]} 5. e3 {[%clk 0:03:00]}  Be7 {[%clk 0:03:02]} 6. Bd3 {[%clk 0:03:00]}  f5 {[%clk 0:03:02]} 7. Ne5 {[%clk 0:02:57]}  O-O {[%clk 0:02:59]} 8. cxd5 {[%clk 0:02:57]}  Nxc3 {[%clk 0:02:54]} 9. bxc3 {[%clk 0:02:57]}  exd5 {[%clk 0:02:54]} 10. O-O {[%clk 0:02:57]}  c6 {[%clk 0:02:53]} 11. Rb1 {[%clk 0:02:54]}  Nd7 {[%clk 0:02:52]} 12. Nxd7 {[%clk 0:02:54]}  Qxd7 {[%clk 0:02:53]} 13. c4 {[%clk 0:02:54]}  dxc4 {[%clk 0:02:51]} 14. Bxc4+ {[%clk 0:02:54]}  Kh8 {[%clk 0:02:52]} 15. a4 {[%clk 0:02:53]}  Bd6 {[%clk 0:02:50]} 16. Bb2 {[%clk 0:02:53]}  f4 {[%clk 0:02:47]} 17. e4 {[%clk 0:02:51]}  f3 {[%clk 0:02:46]} 18. Re1 {[%clk 0:02:49]}  Bxh2+ {[%clk 0:02:09]} 19. Kxh2 {[%clk 0:02:48]}  fxg2 {[%clk 0:02:10]} 20. Qh5 {[%clk 0:02:41]}  Rxf2 {[%clk 0:02:00]} 21. Kg1 {[%clk 0:02:41]}  Rf6 {[%clk 0:01:09]} 22. e5 {[%clk 0:02:28]}  Rh6 {[%clk 0:01:06]} 23. e6 {[%clk 0:02:28]}  Qe7 {[%clk 0:00:59]} 24. Qf7 {[%clk 0:02:24]}  Rh1+ {[%clk 0:00:52]} 25. Kxg2 {[%clk 0:02:24]}  Qg5+ {[%clk 0:00:53]} 26. Kxh1 {[%clk 0:02:24]}  Qh4+ {[%clk 0:00:50]} 27. Kg2 {[%clk 0:02:24]}  Qg4+ {[%clk 0:00:50]} 28. Kf2 {[%clk 0:02:20]}  Qh4+ {[%clk 0:00:50]} 29. Ke2 {[%clk 0:02:19]}  Bxe6 {[%clk 0:00:49]} 30. Bxe6 {[%clk 0:02:18]}  Qh2+ {[%clk 0:00:48]} 31. Qf2 {[%clk 0:02:15]}  Qh5+ {[%clk 0:00:45]} 32. Kd3 {[%clk 0:02:14]} 1-0


[Site "https://www.chess.com"]

[Event "Titled Tuesday Blitz November 07 Early 2023"]
[White "Golizadeh, Asghar"]
[Black "carokannlover213"]
[WhiteFideId "12505269"]
[WhiteElo "2854"]
[BlackElo "2693"]
[Result "1/2-1/2"]
[Round "6"]
[TimeControl "180+1"]
[Date "2023.11.07"]
[WhiteClock "0:00:06"]
[BlackClock "0:00:04"]
[Board "45"]

1. e4 {[%clk 0:03:00]}  c5 {[%clk 0:02:59]} 2. Nc3 {[%clk 0:02:59]}  d6 {[%clk 0:02:59]} 3. f4 {[%clk 0:03:00]}  g6 {[%clk 0:02:58]} 4. Nf3 {[%clk 0:03:00]}  Bg7 {[%clk 0:02:58]} 5. Bb5+ {[%clk 0:03:01]}  Bd7 {[%clk 0:02:58]} 6. Bc4 {[%clk 0:03:01]}  e6 {[%clk 0:02:54]} 7. d4 {[%clk 0:02:51]}  Qb6 {[%clk 0:02:12]} 8. d5 {[%clk 0:02:45]}  Qb4 {[%clk 0:02:06]} 9. Nd2 {[%clk 0:02:31]}  b5 {[%clk 0:01:33]} 10. a3 {[%clk 0:02:27]}  Qa5 {[%clk 0:01:33]} 11. dxe6 {[%clk 0:02:24]}  fxe6 {[%clk 0:01:27]} 12. e5 {[%clk 0:01:54]}  bxc4 {[%clk 0:01:22]} 13. Nxc4 {[%clk 0:01:53]}  Qa6 {[%clk 0:01:20]} 14. Nxd6+ {[%clk 0:01:52]}  Kf8 {[%clk 0:01:19]} 15. Be3 {[%clk 0:01:47]}  Qc6 {[%clk 0:01:16]} 16. O-O {[%clk 0:01:43]}  Ne7 {[%clk 0:01:15]} 17. Nce4 {[%clk 0:01:41]}  Na6 {[%clk 0:01:14]} 18. c4 {[%clk 0:01:36]}  Nf5 {[%clk 0:01:10]} 19. Bf2 {[%clk 0:01:36]}  Nxd6 {[%clk 0:01:08]} 20. Nxd6 {[%clk 0:01:36]}  Kg8 {[%clk 0:00:57]} 21. Qg4 {[%clk 0:01:29]}  Bf8 {[%clk 0:00:56]} 22. Rad1 {[%clk 0:01:27]}  Nc7 {[%clk 0:00:37]} 23. h4 {[%clk 0:01:20]}  Ne8 {[%clk 0:00:36]} 24. Ne4 {[%clk 0:01:16]}  Qxe4 {[%clk 0:00:13]} 25. Rxd7 {[%clk 0:01:16]}  Qf5 {[%clk 0:00:14]} 26. Qf3 {[%clk 0:01:14]}  Rb8 {[%clk 0:00:12]} 27. b3 {[%clk 0:01:06]}  Qc2 {[%clk 0:00:09]} 28. Qc6 {[%clk 0:00:59]}  Ng7 {[%clk 0:00:08]} 29. Rfd1 {[%clk 0:00:48]}  Rxb3 {[%clk 0:00:04]} 30. Bxc5 {[%clk 0:00:31]}  Rb1 {[%clk 0:00:03]} 31. Rxb1 {[%clk 0:00:27]}  Qxb1+ {[%clk 0:00:04]} 32. Kh2 {[%clk 0:00:27]}  Qe1 {[%clk 0:00:04]} 33. g3 {[%clk 0:00:04]}  Qe2+ {[%clk 0:00:03]} 34. Kh3 {[%clk 0:00:05]}  Qf1+ {[%clk 0:00:03]} 35. Kh2 {[%clk 0:00:05]}  Qe2+ {[%clk 0:00:04]} 36. Kh3 {[%clk 0:00:06]}  Qf1+ {[%clk 0:00:04]} 37. Kh2 {[%clk 0:00:06]}  Qe2+ {[%clk 0:00:04]} 1/2-1/2


[Site "https://www.chess.com"]

[Event "Titled Tuesday Blitz November 07 Early 2023"]
[White "Perdomo, Leandro"]
[Black "Timofeev, Artyom"]
[WhiteFideId "109746"]
[BlackFideId "4140419"]
[WhiteElo "2682"]
[BlackElo "2852"]
[Result "1-0"]
[Round "6"]
[TimeControl "180+1"]
[Date "2023.11.07"]
[WhiteClock "0:00:17"]
[BlackClock "0:00:11"]
[Board "46"]

1. d4 {[%clk 0:03:00]}  c6 {[%clk 0:02:59]} 2. c4 {[%clk 0:03:01]}  Nf6 {[%clk 0:02:58]} 3. Nc3 {[%clk 0:03:00]}  d5 {[%clk 0:02:57]} 4. cxd5 {[%clk 0:03:01]}  cxd5 {[%clk 0:02:56]} 5. Bf4 {[%clk 0:03:02]}  Nc6 {[%clk 0:02:56]} 6. e3 {[%clk 0:03:02]}  Bg4 {[%clk 0:02:55]} 7. Qb3 {[%clk 0:03:01]}  Na5 {[%clk 0:02:52]} 8. Qa4+ {[%clk 0:03:01]}  Bd7 {[%clk 0:02:51]} 9. Bb5 {[%clk 0:03:02]}  e6 {[%clk 0:02:46]} 10. Nf3 {[%clk 0:02:55]}  a6 {[%clk 0:02:36]} 11. Bxd7+ {[%clk 0:02:54]}  Nxd7 {[%clk 0:02:36]} 12. O-O {[%clk 0:02:46]}  Be7 {[%clk 0:02:33]} 13. Rfc1 {[%clk 0:02:36]}  Nc6 {[%clk 0:02:22]} 14. e4 {[%clk 0:02:13]}  dxe4 {[%clk 0:02:21]} 15. Nxe4 {[%clk 0:02:14]}  O-O {[%clk 0:02:21]} 16. Qd1 {[%clk 0:02:03]}  Nb6 {[%clk 0:02:18]} 17. Nc5 {[%clk 0:02:02]}  Nd5 {[%clk 0:02:08]} 18. Bg3 {[%clk 0:01:54]}  Bxc5 {[%clk 0:01:56]} 19. dxc5 {[%clk 0:01:53]}  Qf6 {[%clk 0:01:56]} 20. Qe2 {[%clk 0:01:45]}  a5 {[%clk 0:01:53]} 21. Rc4 {[%clk 0:01:42]}  Rfd8 {[%clk 0:01:48]} 22. Bh4 {[%clk 0:01:34]}  Qf5 {[%clk 0:01:38]} 23. Bxd8 {[%clk 0:01:33]}  Rxd8 {[%clk 0:01:38]} 24. Rd1 {[%clk 0:01:30]}  h6 {[%clk 0:01:32]} 25. Qe4 {[%clk 0:01:26]}  Qf6 {[%clk 0:01:32]} 26. Rc2 {[%clk 0:01:13]}  Ncb4 {[%clk 0:01:28]} 27. Rcd2 {[%clk 0:01:10]}  Nxa2 {[%clk 0:01:27]} 28. Qa4 {[%clk 0:01:08]}  Nab4 {[%clk 0:01:26]} 29. Qxa5 {[%clk 0:01:07]}  Nc6 {[%clk 0:01:26]} 30. Qb5 {[%clk 0:01:05]}  Rb8 {[%clk 0:01:15]} 31. Qb3 {[%clk 0:00:58]}  b6 {[%clk 0:01:05]} 32. Qb5 {[%clk 0:00:51]}  Nce7 {[%clk 0:00:53]} 33. c6 {[%clk 0:00:41]}  Rc8 {[%clk 0:00:53]} 34. Rc2 {[%clk 0:00:33]}  Rc7 {[%clk 0:00:51]} 35. h3 {[%clk 0:00:29]}  h5 {[%clk 0:00:48]} 36. Rdc1 {[%clk 0:00:25]}  g5 {[%clk 0:00:46]} 37. Qe2 {[%clk 0:00:23]}  Ng6 {[%clk 0:00:45]} 38. Qe4 {[%clk 0:00:21]}  b5 {[%clk 0:00:33]} 39. g3 {[%clk 0:00:19]}  b4 {[%clk 0:00:31]} 40. Kg2 {[%clk 0:00:18]}  b3 {[%clk 0:00:23]} 41. Rd2 {[%clk 0:00:19]}  Kh7 {[%clk 0:00:20]} 42. h4 {[%clk 0:00:18]}  gxh4 {[%clk 0:00:19]} 43. Nxh4 {[%clk 0:00:18]}  Nf4+ {[%clk 0:00:18]} 44. gxf4 {[%clk 0:00:17]}  Qxh4 {[%clk 0:00:18]} 45. Rh1 {[%clk 0:00:16]}  Qg4+ {[%clk 0:00:18]} 46. Kf1 {[%clk 0:00:17]}  Kg7 {[%clk 0:00:18]} 47. Rg1 {[%clk 0:00:17]}  Qh4 {[%clk 0:00:18]} 48. Qe5+ {[%clk 0:00:15]}  Kh6 {[%clk 0:00:14]} 49. Qxc7 {[%clk 0:00:16]}  Qh3+ {[%clk 0:00:13]} 50. Ke1 {[%clk 0:00:16]}  Qf3 {[%clk 0:00:13]} 51. Qb6 {[%clk 0:00:16]}  Qe4+ {[%clk 0:00:12]} 52. Qe3 {[%clk 0:00:16]}  Qb1+ {[%clk 0:00:13]} 53. Rd1 {[%clk 0:00:16]}  Qxb2 {[%clk 0:00:11]} 54. f5+ {[%clk 0:00:17]} 1-0


[Site "https://www.chess.com"]

[Event "Titled Tuesday Blitz November 07 Early 2023"]
[White "Klukin, Kirill"]
[Black "Mgeladze, Tamaz"]
[WhiteFideId "24199273"]
[BlackFideId "13601202"]
[WhiteElo "2848"]
[BlackElo "2676"]
[Result "1-0"]
[Round "6"]
[TimeControl "180+1"]
[Date "2023.11.07"]
[WhiteClock "0:00:14"]
[BlackClock "0:00:25"]
[Board "47"]

1. d4 {[%clk 0:03:00]}  Nf6 {[%clk 0:02:57]} 2. Nf3 {[%clk 0:03:00]}  g6 {[%clk 0:02:57]} 3. e3 {[%clk 0:03:01]}  Bg7 {[%clk 0:02:58]} 4. Be2 {[%clk 0:03:02]}  O-O {[%clk 0:02:59]} 5. O-O {[%clk 0:03:03]}  c5 {[%clk 0:02:59]} 6. dxc5 {[%clk 0:03:03]}  Qc7 {[%clk 0:02:58]} 7. a3 {[%clk 0:03:03]}  Qxc5 {[%clk 0:02:58]} 8. b4 {[%clk 0:03:04]}  Qc7 {[%clk 0:02:57]} 9. Bb2 {[%clk 0:03:04]}  d6 {[%clk 0:02:55]} 10. c4 {[%clk 0:03:05]}  a5 {[%clk 0:02:54]} 11. Nc3 {[%clk 0:03:04]}  Nc6 {[%clk 0:02:54]} 12. Qb3 {[%clk 0:02:36]}  Qb6 {[%clk 0:02:53]} 13. Nd5 {[%clk 0:02:26]}  Nxd5 {[%clk 0:02:53]} 14. cxd5 {[%clk 0:02:26]}  Ne5 {[%clk 0:02:47]} 15. Nxe5 {[%clk 0:02:24]}  Bxe5 {[%clk 0:02:47]} 16. Bxe5 {[%clk 0:02:23]}  dxe5 {[%clk 0:02:48]} 17. Qc3 {[%clk 0:02:20]}  axb4 {[%clk 0:02:44]} 18. axb4 {[%clk 0:02:18]}  Rxa1 {[%clk 0:02:38]} 19. Rxa1 {[%clk 0:02:19]}  Qd6 {[%clk 0:02:34]} 20. Ra8 {[%clk 0:01:57]}  Bf5 {[%clk 0:02:15]} 21. Rxf8+ {[%clk 0:01:56]}  Kxf8 {[%clk 0:02:16]} 22. Qc4 {[%clk 0:01:35]}  h5 {[%clk 0:01:58]} 23. h3 {[%clk 0:01:27]}  Kg7 {[%clk 0:01:57]} 24. e4 {[%clk 0:01:15]}  Bd7 {[%clk 0:01:56]} 25. Qc3 {[%clk 0:01:16]}  f6 {[%clk 0:01:53]} 26. Kf1 {[%clk 0:01:15]}  h4 {[%clk 0:01:49]} 27. Ke1 {[%clk 0:01:15]}  Kf7 {[%clk 0:01:39]} 28. Qc5 {[%clk 0:01:11]}  Ke8 {[%clk 0:01:26]} 29. Bb5 {[%clk 0:00:41]}  Qxc5 {[%clk 0:00:57]} 30. Bxd7+ {[%clk 0:00:41]}  Kxd7 {[%clk 0:00:57]} 31. bxc5 {[%clk 0:00:42]}  b6 {[%clk 0:00:57]} 32. cxb6 {[%clk 0:00:12]}  Kc8 {[%clk 0:00:57]} 33. Ke2 {[%clk 0:00:13]}  Kb7 {[%clk 0:00:57]} 34. Kf3 {[%clk 0:00:11]}  Kxb6 {[%clk 0:00:57]} 35. Kg4 {[%clk 0:00:12]}  g5 {[%clk 0:00:57]} 36. g3 {[%clk 0:00:12]}  hxg3 {[%clk 0:00:27]} 37. fxg3 {[%clk 0:00:12]}  Kc5 {[%clk 0:00:28]} 38. h4 {[%clk 0:00:12]}  gxh4 {[%clk 0:00:29]} 39. gxh4 {[%clk 0:00:13]}  Kd4 {[%clk 0:00:25]} 40. Kf5 {[%clk 0:00:14]} 1-0


[Site "https://www.chess.com"]

[Event "Titled Tuesday Blitz November 07 Early 2023"]
[White "GatoRojo150"]
[Black "Mikhailovsky, Vladimir"]
[BlackFideId "34105414"]
[WhiteElo "2604"]
[BlackElo "2828"]
[Result "0-1"]
[Round "6"]
[TimeControl "180+1"]
[Date "2023.11.07"]
[WhiteClock "0:00:01"]
[BlackClock "0:00:05"]
[Board "49"]

1. e4 {[%clk 0:03:00]}  c5 {[%clk 0:02:55]} 2. Nf3 {[%clk 0:03:00]}  e6 {[%clk 0:02:53]} 3. Nc3 {[%clk 0:03:01]}  a6 {[%clk 0:02:52]} 4. d4 {[%clk 0:03:01]}  cxd4 {[%clk 0:02:52]} 5. Nxd4 {[%clk 0:03:02]}  Nc6 {[%clk 0:02:53]} 6. Bf4 {[%clk 0:02:59]}  d6 {[%clk 0:02:33]} 7. Nxc6 {[%clk 0:02:57]}  bxc6 {[%clk 0:02:33]} 8. Qd2 {[%clk 0:02:57]}  e5 {[%clk 0:02:31]} 9. Bg5 {[%clk 0:02:57]}  Qb6 {[%clk 0:02:26]} 10. Bc4 {[%clk 0:02:50]}  Be6 {[%clk 0:02:10]} 11. Bb3 {[%clk 0:02:45]}  Nf6 {[%clk 0:02:10]} 12. O-O {[%clk 0:02:36]}  Be7 {[%clk 0:02:10]} 13. Bxf6 {[%clk 0:02:24]}  gxf6 {[%clk 0:02:08]} 14. Qh6 {[%clk 0:02:24]}  Kd7 {[%clk 0:01:35]} 15. Rad1 {[%clk 0:02:20]}  Rag8 {[%clk 0:01:30]} 16. Rd3 {[%clk 0:02:16]}  Rg6 {[%clk 0:01:28]} 17. Qh5 {[%clk 0:02:06]}  Bg4 {[%clk 0:00:56]} 18. Qh4 {[%clk 0:01:45]}  f5 {[%clk 0:00:53]} 19. Na4 {[%clk 0:00:47]}  Qa7 {[%clk 0:00:53]} 20. Qg3 {[%clk 0:00:29]}  f4 {[%clk 0:00:53]} 21. Rxd6+ {[%clk 0:00:30]}  Bxd6 {[%clk 0:00:45]} 22. Qd3 {[%clk 0:00:25]}  Ke7 {[%clk 0:00:20]} 23. Kh1 {[%clk 0:00:19]}  Rhg8 {[%clk 0:00:19]} 24. f3 {[%clk 0:00:13]}  Bh3 {[%clk 0:00:19]} 25. g4 {[%clk 0:00:09]}  fxg3 {[%clk 0:00:13]} 26. hxg3 {[%clk 0:00:08]}  Rxg3 {[%clk 0:00:13]} 27. Qc4 {[%clk 0:00:07]}  Be6 {[%clk 0:00:08]} 28. Qe2 {[%clk 0:00:02]}  Rh3+ {[%clk 0:00:04]} 29. Qh2 {[%clk 0:00:02]}  Rxh2+ {[%clk 0:00:04]} 30. Kxh2 {[%clk 0:00:02]}  Qe3 {[%clk 0:00:04]} 31. Bxe6 {[%clk 0:00:01]}  fxe6 {[%clk 0:00:05]} 32. Nc5 {[%clk 0:00:01]}  Qh6# {[%clk 0:00:05]} 0-1


[Site "https://www.chess.com"]

[Event "Titled Tuesday Blitz November 07 Early 2023"]
[White "Yeremyan_ChessMate"]
[Black "Tikhonov, Viacheslav"]
[BlackFideId "44196407"]
[WhiteElo "2784"]
[BlackElo "2549"]
[Result "0-1"]
[Round "6"]
[TimeControl "180+1"]
[Date "2023.11.07"]
[WhiteClock "0:00:00"]
[BlackClock "0:01:07"]
[Board "51"]

1. e4 {[%clk 0:03:00]}  c5 {[%clk 0:02:59]} 2. Nc3 {[%clk 0:02:57]}  Nc6 {[%clk 0:02:59]} 3. Bb5 {[%clk 0:02:57]}  Nd4 {[%clk 0:02:59]} 4. Bc4 {[%clk 0:02:57]}  e6 {[%clk 0:02:59]} 5. Nge2 {[%clk 0:02:58]}  Nxe2 {[%clk 0:02:57]} 6. Qxe2 {[%clk 0:02:58]}  Ne7 {[%clk 0:02:58]} 7. d3 {[%clk 0:02:58]}  Nc6 {[%clk 0:02:58]} 8. O-O {[%clk 0:02:59]}  Be7 {[%clk 0:02:58]} 9. f4 {[%clk 0:02:59]}  O-O {[%clk 0:02:58]} 10. f5 {[%clk 0:02:59]}  Bf6 {[%clk 0:02:57]} 11. Be3 {[%clk 0:02:56]}  Nd4 {[%clk 0:02:54]} 12. Qf2 {[%clk 0:02:56]}  Rb8 {[%clk 0:02:51]} 13. Bf4 {[%clk 0:02:54]}  d6 {[%clk 0:02:46]} 14. a4 {[%clk 0:02:51]}  b6 {[%clk 0:02:43]} 15. Rac1 {[%clk 0:02:44]}  a6 {[%clk 0:02:43]} 16. Kh1 {[%clk 0:02:25]}  b5 {[%clk 0:02:42]} 17. axb5 {[%clk 0:02:25]}  axb5 {[%clk 0:02:43]} 18. Ba2 {[%clk 0:02:26]}  b4 {[%clk 0:02:42]} 19. Ne2 {[%clk 0:02:26]}  Nxc2 {[%clk 0:02:39]} 20. fxe6 {[%clk 0:02:19]}  fxe6 {[%clk 0:02:35]} 21. Rxc2 {[%clk 0:01:59]}  b3 {[%clk 0:02:35]} 22. Bxb3 {[%clk 0:02:00]}  Rxb3 {[%clk 0:02:36]} 23. d4 {[%clk 0:02:00]}  cxd4 {[%clk 0:02:26]} 24. Nxd4 {[%clk 0:02:00]}  Rb7 {[%clk 0:02:06]} 25. Be3 {[%clk 0:01:30]}  Rbf7 {[%clk 0:02:00]} 26. Qe1 {[%clk 0:01:27]}  Ba6 {[%clk 0:01:56]} 27. Nxe6 {[%clk 0:01:20]}  Qe7 {[%clk 0:01:52]} 28. Nxf8 {[%clk 0:01:01]}  Bxf1 {[%clk 0:01:50]} 29. Qxf1 {[%clk 0:01:02]}  Bd4 {[%clk 0:01:37]} 30. Rf2 {[%clk 0:00:50]}  Bxe3 {[%clk 0:01:23]} 31. Rxf7 {[%clk 0:00:16]}  Qxf7 {[%clk 0:01:24]} 32. Qxf7+ {[%clk 0:00:12]}  Kxf7 {[%clk 0:01:25]} 33. Nd7 {[%clk 0:00:12]}  Ba7 {[%clk 0:01:15]} 34. e5 {[%clk 0:00:02]}  Ke7 {[%clk 0:01:14]} 35. e6 {[%clk 0:00:03]}  h6 {[%clk 0:01:07]} 36. g4 {[%clk 0:00:03]}  Kxe6 {[%clk 0:01:06]} 37. Nf8+ {[%clk 0:00:04]}  Kf7 {[%clk 0:01:06]} 38. Nd7 {[%clk 0:00:00]}  Ke7 {[%clk 0:01:07]} 0-1


[Site "https://www.chess.com"]

[Event "Titled Tuesday Blitz November 07 Early 2023"]
[White "Shuvalov, Evgenij"]
[Black "Samunenkov, Ihor"]
[WhiteFideId "4187237"]
[BlackFideId "14187086"]
[WhiteElo "2462"]
[BlackElo "2768"]
[Result "1-0"]
[Round "6"]
[TimeControl "180+1"]
[Date "2023.11.07"]
[WhiteClock "0:00:05"]
[BlackClock "0:00:00"]
[Board "52"]

1. d4 {[%clk 0:01:42]}  d5 {[%clk 0:02:57]} 2. c4 {[%clk 0:01:43]}  e6 {[%clk 0:02:57]} 3. Nf3 {[%clk 0:01:43]}  Nf6 {[%clk 0:02:57]} 4. Nc3 {[%clk 0:01:43]}  a6 {[%clk 0:02:57]} 5. c5 {[%clk 0:01:43]}  b6 {[%clk 0:02:55]} 6. cxb6 {[%clk 0:01:43]}  c5 {[%clk 0:02:56]} 7. dxc5 {[%clk 0:01:40]}  Bxc5 {[%clk 0:02:56]} 8. Na4 {[%clk 0:01:40]}  Bb4+ {[%clk 0:02:23]} 9. Bd2 {[%clk 0:01:40]}  Bxd2+ {[%clk 0:02:23]} 10. Qxd2 {[%clk 0:01:40]}  O-O {[%clk 0:02:22]} 11. e3 {[%clk 0:01:39]}  Nbd7 {[%clk 0:02:20]} 12. Qa5 {[%clk 0:01:36]}  Rb8 {[%clk 0:02:17]} 13. Nd4 {[%clk 0:01:36]}  Bb7 {[%clk 0:02:08]} 14. Rc1 {[%clk 0:01:27]}  Ne4 {[%clk 0:02:03]} 15. Bd3 {[%clk 0:01:21]}  Nd6 {[%clk 0:01:37]} 16. O-O {[%clk 0:01:19]}  Ne5 {[%clk 0:01:35]} 17. Rfd1 {[%clk 0:01:11]}  Nxd3 {[%clk 0:01:28]} 18. Rxd3 {[%clk 0:01:12]}  Nc4 {[%clk 0:01:28]} 19. Qb4 {[%clk 0:01:07]}  a5 {[%clk 0:00:40]} 20. Qb5 {[%clk 0:01:05]}  Ra8 {[%clk 0:00:33]} 21. Nc6 {[%clk 0:00:57]}  Qe8 {[%clk 0:00:30]} 22. Na7 {[%clk 0:00:51]}  Qxb5 {[%clk 0:00:19]} 23. Nxb5 {[%clk 0:00:52]}  Bc6 {[%clk 0:00:19]} 24. Nbc3 {[%clk 0:00:47]}  Rab8 {[%clk 0:00:19]} 25. b3 {[%clk 0:00:45]}  Nxb6 {[%clk 0:00:19]} 26. Nxb6 {[%clk 0:00:43]}  Rxb6 {[%clk 0:00:20]} 27. Ne2 {[%clk 0:00:38]}  Bb5 {[%clk 0:00:18]} 28. Rd2 {[%clk 0:00:36]}  a4 {[%clk 0:00:18]} 29. bxa4 {[%clk 0:00:31]}  Bxa4 {[%clk 0:00:18]} 30. f4 {[%clk 0:00:23]}  g6 {[%clk 0:00:17]} 31. Nd4 {[%clk 0:00:23]}  Rfb8 {[%clk 0:00:16]} 32. Kf2 {[%clk 0:00:22]}  Rb2 {[%clk 0:00:15]} 33. Rxb2 {[%clk 0:00:19]}  Rxb2+ {[%clk 0:00:15]} 34. Kf3 {[%clk 0:00:20]}  Rxa2 {[%clk 0:00:15]} 35. Rc8+ {[%clk 0:00:20]}  Kg7 {[%clk 0:00:16]} 36. g4 {[%clk 0:00:19]}  Bd1+ {[%clk 0:00:14]} 37. Kg3 {[%clk 0:00:19]}  Ra3 {[%clk 0:00:14]} 38. Kf2 {[%clk 0:00:18]}  Bxg4 {[%clk 0:00:14]} 39. Rc7 {[%clk 0:00:18]}  h5 {[%clk 0:00:12]} 40. h4 {[%clk 0:00:16]}  Ra2+ {[%clk 0:00:06]} 41. Kg3 {[%clk 0:00:17]}  Bf5 {[%clk 0:00:07]} 42. Nf3 {[%clk 0:00:13]}  Ra3 {[%clk 0:00:04]} 43. Kf2 {[%clk 0:00:13]}  Ra2+ {[%clk 0:00:03]} 44. Kg3 {[%clk 0:00:13]}  Rc2 {[%clk 0:00:04]} 45. Ra7 {[%clk 0:00:12]}  Rc3 {[%clk 0:00:04]} 46. Kf2 {[%clk 0:00:12]}  Rc8 {[%clk 0:00:02]} 47. Ne5 {[%clk 0:00:09]}  Rf8 {[%clk 0:00:03]} 48. Nd7 {[%clk 0:00:10]}  Rd8 {[%clk 0:00:02]} 49. Ne5 {[%clk 0:00:10]}  Rf8 {[%clk 0:00:02]} 50. Nd7 {[%clk 0:00:10]}  Be4 {[%clk 0:00:02]} 51. Nxf8 {[%clk 0:00:10]}  Kxf8 {[%clk 0:00:03]} 52. Ke2 {[%clk 0:00:07]}  Kg7 {[%clk 0:00:03]} 53. Kd2 {[%clk 0:00:07]}  Kf6 {[%clk 0:00:02]} 54. Kc3 {[%clk 0:00:07]}  Bf5 {[%clk 0:00:02]} 55. Kd4 {[%clk 0:00:08]}  Bg4 {[%clk 0:00:02]} 56. Rc7 {[%clk 0:00:07]}  Kg7 {[%clk 0:00:02]} 57. Ke5 {[%clk 0:00:07]}  Bf5 {[%clk 0:00:02]} 58. Ra7 {[%clk 0:00:06]}  Bg4 {[%clk 0:00:02]} 59. Kd6 {[%clk 0:00:06]}  Kf8 {[%clk 0:00:02]} 60. Ra8+ {[%clk 0:00:06]}  Kg7 {[%clk 0:00:02]} 61. Ke7 {[%clk 0:00:06]}  Bf5 {[%clk 0:00:01]} 62. Ra7 {[%clk 0:00:06]}  Bg4 {[%clk 0:00:01]} 63. Ke8 {[%clk 0:00:07]}  Bf5 {[%clk 0:00:01]} 64. Rxf7+ {[%clk 0:00:07]}  Kg8 {[%clk 0:00:02]} 65. Ra7 {[%clk 0:00:05]}  Bg4 {[%clk 0:00:02]} 66. Ke7 {[%clk 0:00:06]}  Kg7 {[%clk 0:00:02]} 67. Kd6+ {[%clk 0:00:05]}  Kf6 {[%clk 0:00:03]} 68. Ra8 {[%clk 0:00:05]}  Bf5 {[%clk 0:00:03]} 69. Rf8+ {[%clk 0:00:05]}  Kg7 {[%clk 0:00:04]} 70. Ke7 {[%clk 0:00:05]}  Bg4 {[%clk 0:00:03]} 71. Rd8 {[%clk 0:00:04]}  Bf5 {[%clk 0:00:03]} 72. Rd6 {[%clk 0:00:05]}  Bg4 {[%clk 0:00:00]} 73. Rxe6 {[%clk 0:00:05]} 1-0


[Site "https://www.chess.com"]